bitfinex-derivatives/quotes_BTCF0:USTF0_20260107
["timestamp","ask_amount","ask_price","bid_price","bid_amount"]
[1767786114724,0.07401978,92350.0,92334.0,0.09945673]
[1767786115421,0.07401978,92350.0,92335.0,0.09945673]
[1767786118534,0.07401978,92350.0,92335.0,0.07477662]
[1767786120029,0.09216,92356.0,92335.0,0.07477662]
[1767786120030,0.09216,92356.0,92336.0,0.09961029]
[1767786120235,0.07401978,92350.0,92336.0,0.09961029]
[1767786121735,0.08485578,92350.0,92336.0,0.09961029]
[1767786123238,0.08485578,92350.0,92339.0,0.00216594]
[1767786123431,0.08485578,92350.0,92339.0,4.516e-05]
[1767786124137,0.07401978,92350.0,92339.0,4.516e-05]
[1767786126648,0.07401978,92350.0,92336.0,0.07497534]
[1767786127744,0.07401978,92350.0,92336.0,0.00111266]
[1767786128333,0.07401978,92350.0,92337.0,0.09216]
[1767786130447,0.010836,92351.0,92337.0,0.09216]
[1767786130635,0.07401978,92350.0,92337.0,0.09216]
[1767786133046,0.010836,92349.0,92331.0,0.09976739]
[1767786133249,0.07401978,92341.0,92332.0,0.09216]
[1767786133450,0.07401978,92341.0,92333.0,0.0026134]
[1767786133746,0.07401978,92343.0,92333.0,0.0026134]
[1767786134547,0.07401978,92343.0,92333.0,0.00102185]
[1767786135745,0.010837,92339.0,92322.0,0.09486775]
[1767786135946,0.07401978,92332.0,92323.0,0.09216]
[1767786136249,0.07401978,92340.0,92323.0,0.28679514]
[1767786136545,0.07401978,92340.0,92324.0,0.09486775]
[1767786138548,0.010837,92340.0,92324.0,0.09486775]
[1767786138748,0.08485678,92340.0,92324.0,0.09486775]
[1767786139854,0.08485678,92340.0,92325.0,0.09216]
[1767786140652,0.010837,92338.0,92325.0,0.09216]
[1767786140946,0.010837,92338.0,92319.0,0.19463514]
[1767786141140,0.010837,92338.0,92326.0,0.09216]
[1767786141340,0.07401978,92336.0,92326.0,0.09216]
[1767786141551,0.010837,92338.0,92326.0,0.09216]
[1767786143751,0.07401978,92340.0,92326.0,0.09216]
[1767786145546,0.010837,92341.0,92326.0,0.09216]
[1767786145747,0.010837,92339.0,92326.0,0.09216]
[1767786145949,0.07401978,92333.0,92317.0,0.09486775]
[1767786146155,0.07401978,92330.0,92318.0,0.09216]
[1767786146746,0.07401978,92330.0,92318.0,0.28679514]
[1767786146946,0.07401978,92330.0,92319.0,0.09486775]
[1767786148256,0.07401978,92330.0,92321.0,0.09486775]
[1767786151554,0.07401978,92331.0,92321.0,0.09486775]
[1767786152052,0.07401978,92331.0,92318.0,0.09216]
[1767786155060,0.08485778,92331.0,92318.0,0.09216]
[1767786155649,0.08485778,92331.0,92316.0,0.09124281]
[1767786156353,0.010839,92328.0,92316.0,0.09124281]
[1767786156557,0.08485878,92326.0,92310.0,0.09216]
[1767786156749,0.09166605,92333.0,92310.0,0.09216]
[1767786156750,0.07401978,92320.0,92310.0,0.09216]
[1767786158557,0.010838,92332.0,92310.0,0.09216]
[1767786160364,0.010838,92330.0,92310.0,0.09216]
[1767786161464,0.010838,92330.0,92310.0,0.18340281]
[1767786161865,0.010838,92331.0,92310.0,0.18340281]
[1767786162165,0.09166605,92333.0,92310.0,0.18340281]
[1767786162664,0.09166605,92333.0,92312.0,0.09124281]
[1767786163165,0.010839,92329.0,92312.0,0.09124281]
[1767786163558,0.09216,92334.0,92310.0,0.09216]
[1767786163559,0.010839,92327.0,92310.0,0.09216]
[1767786163759,0.10250505,92327.0,92310.0,0.09216]
[1767786164168,0.010839,92325.0,92309.0,0.00216665]
[1767786165668,0.010839,92323.0,92309.0,0.00216665]
[1767786165871,0.010839,92323.0,92305.0,0.09124281]
[1767786166961,0.010839,92326.0,92305.0,0.09124281]
[1767786167268,0.010839,92324.0,92306.0,0.09124281]
[1767786168458,0.010839,92324.0,92306.0,0.18762099]
[1767786168872,0.010839,92324.0,92307.0,0.09124281]
[1767786169968,0.010839,92324.0,92307.0,0.18762099]
[1767786170874,0.010839,92324.0,92308.0,0.09124281]
[1767786171276,0.09166605,92327.0,92308.0,0.09124281]
[1767786171476,0.010839,92322.0,92308.0,0.09124281]
[1767786175571,0.01084,92319.0,92298.0,0.0922]
[1767786177475,0.01084,92319.0,92299.0,0.09124281]
[1767786177678,0.01084,92319.0,92298.0,0.0922]
[1767786177868,0.01084,92317.0,92298.0,0.0922]
[1767786179766,0.01084,92317.0,92301.0,0.09637818]
[1767786180473,0.01084,92317.0,92301.0,0.09626436]
[1767786181180,0.01084,92317.0,92301.0,0.18750717]
[1767786181481,0.01084,92317.0,92301.0,0.09124281]
[1767786182368,0.01084,92317.0,92301.0,0.18623938]
[1767786182573,0.01084,92317.0,92302.0,0.09499657]
[1767786182882,0.01084,92317.0,92301.0,0.09124281]
[1767786184681,0.01084,92317.0,92302.0,0.09499657]
[1767786185483,0.01084,92317.0,92303.0,0.19182506]
[1767786186384,0.01084,92320.0,92303.0,0.19182506]
[1767786186588,0.00016245,92319.0,92306.0,0.19182506]
[1767786186788,0.00016245,92319.0,92307.0,0.09213788]
[1767786188183,0.00016245,92319.0,92306.0,0.07462301]
[1767786188785,0.01100245,92319.0,92307.0,0.19182506]
[1767786193188,0.01084,92317.0,92307.0,0.09968718]
[1767786195191,0.00016245,92319.0,92307.0,0.07499882]
[1767786197095,0.010839,92323.0,92309.0,0.09968718]
[1767786197287,0.0922,92322.0,92309.0,0.04532251]
[1767786199197,0.0922,92322.0,92310.0,0.09213788]
[1767786199697,0.010839,92321.0,92310.0,0.09213788]
[1767786203088,0.010839,92321.0,92310.0,0.06744951]
[1767786204598,0.010839,92321.0,92304.0,0.09984963]
[1767786206399,0.010839,92321.0,92305.0,0.02657373]
[1767786207499,0.01084,92318.0,92305.0,0.02657373]
[1767786207702,0.01084,92316.0,92296.0,0.0922]
[1767786208591,0.01084,92316.0,92296.0,0.19188718]
[1767786211504,0.01084,92316.0,92296.0,0.16719875]
[1767786212796,0.01084,92316.0,92297.0,0.00056167]
[1767786213910,0.19777495,92318.0,92297.0,0.00056167]
[1767786215411,0.09960379,92317.0,92297.0,0.00056167]
[1767786220513,0.07408252,92310.0,92297.0,0.00056167]
[1767786223622,0.19778634,92317.0,92297.0,0.00056167]
[1767786226733,0.09960379,92316.0,92297.0,0.00056167]
[1767786229733,0.09818255,92315.0,92296.0,0.06751157]
[1767786229918,0.09960379,92314.0,92296.0,0.06751157]
[1767786232336,0.09960379,92302.0,92280.0,0.09287916]
[1767786232533,0.07408252,92300.0,92281.0,0.0922]
[1767786238032,0.09960379,92298.0,92281.0,0.0922]
[1767786240232,0.07408252,92300.0,92281.0,0.0922]
[1767786248150,0.09839791,92304.0,92282.0,0.10773228]
[1767786248546,0.09046763,92303.0,92282.0,0.10773228]
[1767786249051,0.07408252,92300.0,92281.0,0.0922]
[1767786255255,0.16455015,92300.0,92281.0,0.0922]
[1767786255757,0.25471924,92300.0,92281.0,0.0922]
[1767786257658,0.07408252,92291.0,92281.0,0.0922]
[1767786257854,0.09046763,92296.0,92281.0,0.0922]
[1767786258052,0.09016909,92295.0,92281.0,0.0922]
[1767786258362,0.18063672,92295.0,92281.0,0.0922]
[1767786260554,0.07408252,92291.0,92281.0,0.0922]
[1767786260760,0.18063672,92294.0,92281.0,0.0922]
[1767786262257,0.18063672,92294.0,92281.0,0.0675078]
[1767786264963,0.09046763,92293.0,92281.0,0.0675078]
[1767786266153,0.18063672,92293.0,92281.0,0.0675078]
[1767786266356,0.09046763,92292.0,92281.0,0.0675078]
[1767786267758,0.09046763,92292.0,92278.0,0.0922]
[1767786271482,0.18063672,92292.0,92278.0,0.0922]
[1767786272784,0.09616596,92291.0,92278.0,0.0922]
[1767786273478,0.18529086,92291.0,92278.0,0.0922]
[1767786273676,0.18529086,92290.0,92278.0,0.0922]
[1767786274178,0.09616596,92290.0,92278.0,0.0922]
[1767786276080,0.09616596,92289.0,92278.0,0.0922]
[1767786277283,0.18529086,92285.0,92278.0,0.0922]
[1767786277686,0.09616596,92285.0,92278.0,0.0922]
[1767786279889,0.09616596,92285.0,92266.0,0.010846]
[1767786280092,0.09616596,92285.0,92267.0,0.37636]
[1767786282391,0.09616596,92285.0,92267.0,0.77636]
[1767786284292,0.09616596,92285.0,92267.0,0.37636]
[1767786285292,0.09616596,92284.0,92267.0,0.37636]
[1767786288798,0.18529086,92288.0,92267.0,0.37636]
[1767786288999,0.09616596,92286.0,92267.0,0.37636]
[1767786289599,0.09616596,92298.0,92272.0,0.09966913]
[1767786289994,0.0891249,92297.0,92272.0,0.09966913]
[1767786290193,0.18529086,92291.0,92267.0,0.47602913]
[1767786290497,0.18529086,92284.0,92268.0,0.0922]
[1767786290697,0.09616596,92283.0,92269.0,0.0922]
[1767786291200,0.0891249,92276.0,92254.0,0.00590543]
[1767786291497,0.0891249,92287.0,92257.0,0.09966913]
[1767786291691,0.0891249,92287.0,92263.0,0.09966913]
[1767786291891,0.0891249,92287.0,92265.0,0.09966913]
[1767786295201,0.09616596,92286.0,92265.0,0.09966913]
[1767786295400,0.0891249,92285.0,92265.0,0.09966913]
[1767786296001,0.09616596,92286.0,92265.0,0.09966913]
[1767786296401,0.18529086,92286.0,92265.0,0.09966913]
[1767786297604,0.09616596,92285.0,92265.0,0.09966913]
[1767786300201,0.09842803,92293.0,92265.0,0.09966913]
[1767786300398,0.18296889,92297.0,92268.0,0.09932521]
[1767786300600,0.09842803,92296.0,92268.0,0.09932521]
[1767786300911,0.18296889,92294.0,92270.0,0.11017021]
[1767786302608,0.18296889,92294.0,92270.0,0.09932521]
[1767786304411,0.09967826,92293.0,92270.0,0.09932521]
[1767786306697,0.18510233,92293.0,92270.0,0.09932521]
[1767786306903,0.19594533,92293.0,92270.0,0.09932521]
[1767786308211,0.09967826,92292.0,92270.0,0.09932521]
[1767786309419,0.18510233,92291.0,92270.0,0.09932521]
[1767786309628,0.18510233,92289.0,92265.0,0.0937972]
[1767786310119,0.19594533,92289.0,92265.0,0.0937972]
[1767786310330,0.09967826,92288.0,92265.0,0.0937972]
[1767786311326,0.18510233,92288.0,92265.0,0.0937972]
[1767786312824,0.09967826,92287.0,92265.0,0.0937972]
[1767786313025,0.08542407,92286.0,92265.0,0.0937972]
[1767786313726,0.09967826,92287.0,92264.0,0.0922]
[1767786313727,0.18510233,92284.0,92264.0,0.0922]
[1767786313925,0.18510233,92284.0,92262.0,0.93472]
[1767786314123,0.18510233,92284.0,92255.0,0.00590543]
[1767786314124,0.18510233,92278.0,92263.0,0.0922]
[1767786314428,0.18510233,92274.0,92263.0,0.0922]
[1767786314726,0.08542407,92278.0,92263.0,0.0922]
[1767786315425,0.09967826,92280.0,92263.0,0.0922]
[1767786316627,0.18510233,92280.0,92263.0,0.0922]
[1767786316828,0.18510233,92275.0,92263.0,0.0922]
[1767786317031,0.18510233,92273.0,92263.0,0.0922]
[1767786317327,0.18510233,92273.0,92263.0,0.09204798]
[1767786317828,0.09967826,92273.0,92263.0,0.09204798]
[1767786321822,0.08542407,92277.0,92263.0,0.09204798]
[1767786322719,0.18510233,92277.0,92263.0,0.09204798]
[1767786323324,0.010844,92284.0,92263.0,0.09204798]
[1767786323325,0.09967826,92271.0,92263.0,0.09204798]
[1767786323521,0.18510233,92271.0,92263.0,0.09204798]
[1767786323923,0.09967826,92271.0,92263.0,0.09204798]
[1767786325635,0.08542407,92275.0,92263.0,0.09204798]
[1767786326232,0.18510233,92275.0,92263.0,0.09204798]
[1767786327639,0.18510233,92274.0,92263.0,0.09204798]
[1767786327935,0.18510233,92277.0,92263.0,0.09204798]
[1767786328139,0.18510233,92276.0,92263.0,0.09204798]
[1767786328430,0.18510233,92274.0,92263.0,0.09204798]
[1767786329232,0.18510233,92271.0,92263.0,0.09204798]
[1767786329434,0.18510233,92270.0,92263.0,0.09204798]
[1767786329634,0.09967826,92270.0,92263.0,0.09204798]
[1767786330632,0.08542407,92270.0,92263.0,0.01300119]
[1767786330834,0.08542407,92260.0,92252.0,0.09224]
[1767786331025,0.09967826,92258.0,92251.0,0.09224]
[1767786332027,0.0915935,92262.0,92251.0,0.09224]
[1767786332227,0.0915935,92268.0,92251.0,0.09224]
[1767786334945,0.16395725,92267.0,92251.0,0.09224]
[1767786335140,0.0915935,92266.0,92251.0,0.09224]
[1767786336130,0.0915935,92265.0,92251.0,0.09224]
[1767786338838,0.0915935,92277.0,92256.0,0.07629791]
[1767786339540,0.0915935,92276.0,92256.0,0.07629791]
[1767786344137,0.16395725,92276.0,92256.0,0.07629791]
[1767786344342,0.0915935,92275.0,92256.0,0.07629791]
[1767786346747,0.0915935,92274.0,92256.0,0.07629791]
[1767786353251,0.16395725,92274.0,92256.0,0.07629791]
[1767786353452,0.0915935,92273.0,92252.0,0.010847]
[1767786353643,0.0915935,92273.0,92253.0,0.07629791]
[1767786355252,0.0915935,92272.0,92253.0,0.07629791]
[1767786356251,0.16395725,92271.0,92253.0,0.07629791]
[1767786358953,0.07236375,92269.0,92251.0,0.09224]
[1767786359155,0.0915935,92267.0,92251.0,0.09224]
[1767786360053,0.0915935,92267.0,92242.0,0.09347916]
[1767786360054,0.09509898,92260.0,92252.0,0.09224]
[1767786360355,0.09509898,92260.0,92253.0,0.09224]
[1767786360551,0.09509898,92258.0,92241.0,0.06718107]
[1767786360758,0.09509898,92256.0,92242.0,0.09224]
[1767786361453,0.09509898,92256.0,92240.0,0.06718107]
[1767786361660,0.09849893,92254.0,92241.0,0.09224]
[1767786362353,0.09849893,92262.0,92242.0,0.07009798]
[1767786362657,0.09849893,92262.0,92250.0,0.07413742]
[1767786363548,0.09849893,92262.0,92243.0,0.07009798]
[1767786364253,0.09849893,92261.0,92243.0,0.07009798]
[1767786366059,0.16663556,92264.0,92242.0,0.07009798]
[1767786366761,0.09849893,92263.0,92242.0,0.07009798]
[1767786366956,0.09849893,92262.0,92242.0,0.07009798]
[1767786367251,0.09849893,92261.0,92242.0,0.07009798]
[1767786367452,0.09849893,92260.0,92242.0,0.07009798]
[1767786370157,0.09849893,92259.0,92241.0,0.09224]
[1767786371259,0.16663556,92259.0,92241.0,0.09224]
[1767786371460,0.09849893,92258.0,92241.0,0.09224]
[1767786372055,0.09849893,92258.0,92241.0,0.16233798]
[1767786372256,0.22524638,92264.0,92242.0,0.07009798]
[1767786372466,0.09849893,92262.0,92242.0,0.07009798]
[1767786372761,0.16663556,92262.0,92242.0,0.07009798]
[1767786373362,0.09849893,92261.0,92242.0,0.07009798]
[1767786373956,0.06813663,92261.0,92242.0,0.07009798]
[1767786374154,0.09849893,92260.0,92242.0,0.07009798]
[1767786374354,0.09849893,92258.0,92241.0,0.09224]
[1767786374757,0.09849893,92257.0,92241.0,0.09224]
[1767786375154,0.16663556,92255.0,92241.0,0.09224]
[1767786375454,0.09849893,92254.0,92241.0,0.09224]
[1767786376360,0.09849893,92252.0,92241.0,0.09224]
[1767786376664,0.09849893,92244.0,92242.0,0.06996106]
[1767786376865,0.16663556,92249.0,92241.0,0.09224]
[1767786379564,0.06813663,92248.0,92241.0,0.02227894]
[1767786380261,0.16663556,92246.0,92230.0,0.07413742]
[1767786380560,0.09849893,92252.0,92237.0,0.09224]
[1767786383855,0.06813663,92263.0,92242.0,0.07009798]
[1767786384060,0.06813663,92263.0,92250.0,0.07413742]
[1767786384261,0.06813663,92263.0,92242.0,0.07009798]
[1767786384864,0.06813663,92263.0,92244.0,0.08094598]
[1767786386977,0.06813663,92263.0,92244.0,0.07009798]
[1767786391479,0.16663556,92263.0,92244.0,0.07009798]
[1767786394379,0.15547537,92262.0,92242.0,0.0952485]
[1767786394570,0.15547537,92261.0,92242.0,0.0952485]
[1767786395970,0.15547537,92261.0,92242.0,0.15761001]
[1767786400383,0.15547537,92261.0,92243.0,0.09224]
[1767786404391,0.09074753,92261.0,92244.0,0.010848]
[1767786406892,0.06472784,92259.0,92243.0,0.09224]
[1767786407388,0.15547537,92267.0,92246.0,0.06236151]
[1767786407591,0.06472784,92276.0,92257.0,0.06236151]
[1767786407895,0.06472784,92276.0,92258.0,0.09224]
[1767786408096,0.15547537,92276.0,92258.0,0.09224]
[1767786408294,0.06472784,92275.0,92258.0,0.09224]
[1767786410295,0.15547537,92275.0,92258.0,0.09224]
[1767786410499,0.06472784,92274.0,92258.0,0.09224]
[1767786410697,0.15547537,92274.0,92258.0,0.09224]
[1767786411194,0.06472784,92273.0,92258.0,0.09224]
[1767786411395,0.15547537,92273.0,92258.0,0.09224]
[1767786411592,0.15547537,92272.0,92258.0,0.09224]
[1767786411794,0.15547537,92272.0,92207.0,0.92264]
[1767786411795,0.15547537,92264.0,92256.0,0.09224]
[1767786412702,0.15547537,92259.0,92250.0,0.09224]
[1767786412999,0.09074753,92252.0,92241.0,0.09224]
[1767786420307,0.02919545,92256.0,92241.0,0.09224]
[1767786420703,0.09937308,92257.0,92241.0,0.09224]
[1767786420898,0.05873989,92261.0,92242.0,0.05995563]
[1767786421104,0.09937308,92263.0,92243.0,0.05995563]
[1767786421607,0.15930136,92263.0,92243.0,0.05995563]
[1767786422810,0.12833549,92262.0,92243.0,0.05995563]
[1767786423209,0.09153897,92261.0,92243.0,0.05995563]
[1767786424509,0.11682224,92261.0,92243.0,0.05995563]
[1767786424710,0.09153897,92260.0,92241.0,0.09224]
[1767786425413,0.11612325,92260.0,92241.0,0.09224]
[1767786426709,0.11496141,92255.0,92241.0,0.09224]
[1767786426914,0.11496141,92253.0,92241.0,0.09224]
[1767786427916,0.11430257,92250.0,92241.0,0.09224]
[1767786428413,0.09153897,92250.0,92241.0,0.09224]
[1767786428814,0.09153897,92249.0,92241.0,0.09224]
[1767786431315,0.09153897,92253.0,92241.0,0.09224]
[1767786432414,0.09153897,92251.0,92241.0,0.09224]
[1767786432619,0.11328612,92251.0,92241.0,0.09224]
[1767786433215,0.11278159,92243.0,92233.0,0.09224]
[1767786433418,0.09153897,92257.0,92234.0,0.06399915]
[1767786433718,0.02124262,92256.0,92234.0,0.06399915]
[1767786434018,0.02059103,92257.0,92238.0,0.09824531]
[1767786434211,0.02059103,92255.0,92235.0,0.06399915]
[1767786436416,0.02185502,92254.0,92235.0,0.06399915]
[1767786438318,0.15193245,92255.0,92236.0,0.06399915]
[1767786439816,0.17184598,92255.0,92236.0,0.06399915]
[1767786442013,0.17184598,92255.0,92239.0,0.16224446]
[1767786442014,0.06039348,92255.0,92239.0,0.16224446]
[1767786442221,0.09224,92268.0,92250.0,0.06399915]
[1767786442523,0.09224,92269.0,92250.0,0.06399915]
[1767786443224,0.10899034,92269.0,92250.0,0.06399915]
[1767786443425,0.09224,92269.0,92250.0,0.06399915]
[1767786443929,0.09153897,92271.0,92251.0,0.06399915]
[1767786444127,0.09224,92275.0,92255.0,0.06399915]
[1767786444325,0.13532031,92275.0,92255.0,0.03929908]
[1767786444723,0.04308031,92274.0,92255.0,0.03929908]
[1767786445225,0.04208948,92272.0,92254.0,0.09824531]
[1767786446228,0.04237601,92269.0,92245.0,0.06399915]
[1767786446429,0.04237601,92262.0,92243.0,0.09224]
[1767786446730,0.13391498,92262.0,92243.0,0.09224]
[1767786446929,0.13391498,92262.0,92244.0,0.06399915]
[1767786447120,0.010845,92270.0,92244.0,0.06399915]
[1767786447121,0.04222911,92266.0,92244.0,0.06399915]
[1767786447315,0.04222911,92266.0,92244.0,0.16224446]
[1767786447626,0.04222911,92266.0,92245.0,0.06399915]
[1767786448931,0.04222911,92266.0,92246.0,0.06399915]
[1767786449523,0.13376808,92266.0,92246.0,0.06399915]
[1767786449728,0.04182769,92265.0,92246.0,0.06399915]
[1767786450825,0.04182769,92265.0,92237.0,0.010849]
[1767786451125,0.04056354,92258.0,92240.0,0.09824531]
[1767786451422,0.04056354,92262.0,92241.0,0.06399915]
[1767786451629,0.04056354,92262.0,92242.0,0.05712004]
[1767786453431,0.010846,92263.0,92244.0,0.05712004]
[1767786453819,0.04980331,92263.0,92244.0,0.05712004]
[1767786454027,0.03895731,92255.0,92245.0,0.09224]
[1767786454329,0.03895731,92260.0,92246.0,0.09224]
[1767786454833,0.09161116,92262.0,92246.0,0.09224]
[1767786457137,0.010846,92264.0,92246.0,0.14936004]
[1767786457720,0.09161116,92267.0,92247.0,0.09376502]
[1767786457929,0.09161116,92272.0,92253.0,0.05712004]
[1767786458233,0.18385116,92272.0,92253.0,0.05712004]
[1767786458533,0.06600733,92270.0,92252.0,0.09376502]
[1767786458743,0.05516233,92269.0,92246.0,0.18600502]
[1767786458927,0.06600833,92268.0,92246.0,0.18600502]
[1767786459234,0.06600833,92266.0,92246.0,0.18600502]
[1767786459625,0.010846,92266.0,92247.0,0.09376502]
[1767786460026,0.06600833,92266.0,92247.0,0.09376502]
[1767786460734,0.05516233,92266.0,92247.0,0.15088506]
[1767786469140,0.05516233,92266.0,92248.0,0.05712004]
[1767786473243,0.05516233,92266.0,92249.0,0.09224]
[1767786474560,0.05516233,92266.0,92248.0,0.09224]
[1767786474765,0.05516233,92266.0,92248.0,0.07591179]
[1767786479356,0.05516233,92266.0,92248.0,0.13303183]
[1767786480954,0.06253382,92269.0,92249.0,0.0609142]
[1767786481161,0.09224,92272.0,92255.0,0.15605257]
[1767786481363,0.010842,92303.0,92250.0,0.07415425]
[1767786481364,0.09224,92279.0,92262.0,0.15605257]
[1767786481563,0.09224,92279.0,92263.0,0.0609142]
[1767786481765,0.07415425,92273.0,92255.0,0.06437067]
[1767786481964,0.09500644,92264.0,92248.0,0.07591179]
[1767786482266,0.09500644,92274.0,92249.0,0.09034473]
[1767786482467,0.010845,92272.0,92249.0,0.09034473]
[1767786482768,0.07415425,92270.0,92249.0,0.09034473]
[1767786483070,0.15901483,92269.0,92249.0,0.09034473]
[1767786483363,0.15901483,92267.0,92248.0,0.07591179]
[1767786483668,0.15901483,92265.0,92248.0,0.07591179]
[1767786483868,0.07415425,92260.0,92248.0,0.07591179]
[1767786484072,0.15901483,92265.0,92248.0,0.07591179]
[1767786484566,0.09224,92269.0,92248.0,0.07591179]
[1767786484567,0.07415425,92260.0,92248.0,0.07591179]
[1767786485571,0.15901483,92264.0,92248.0,0.07591179]
[1767786486774,0.15901483,92264.0,92244.0,0.06437067]
[1767786487477,0.09500644,92264.0,92245.0,0.06437067]
[1767786487673,0.06400839,92267.0,92247.0,0.06437067]
[1767786487871,0.05826285,92272.0,92256.0,0.1547154]
[1767786488070,0.18724644,92276.0,92257.0,0.06437067]
[1767786488374,0.09500644,92276.0,92257.0,0.06437067]
[1767786488568,0.21956081,92276.0,92257.0,0.06437067]
[1767786489474,0.06400839,92275.0,92257.0,0.06437067]
[1767786489675,0.15901483,92275.0,92256.0,0.09034473]
[1767786492573,0.06400839,92274.0,92254.0,0.06437067]
[1767786492776,0.07415425,92270.0,92254.0,0.06437067]
[1767786495781,0.06400839,92266.0,92243.0,0.06437067]
[1767786495979,0.15901483,92266.0,92244.0,0.15661067]
[1767786496180,0.15901483,92266.0,92245.0,0.06437067]
[1767786496474,0.09500644,92266.0,92247.0,0.06437067]
[1767786496679,0.13816264,92270.0,92248.0,0.06437067]
[1767786496880,0.13816264,92270.0,92249.0,0.06437067]
[1767786497879,0.010846,92268.0,92249.0,0.06437067]
[1767786498283,0.07485439,92268.0,92249.0,0.06437067]
[1767786498574,0.15901483,92267.0,92248.0,0.09034473]
[1767786499379,0.06400839,92266.0,92246.0,0.06437067]
[1767786501279,0.09500644,92267.0,92247.0,0.06437067]
[1767786502576,0.09500644,92266.0,92247.0,0.06437067]
[1767786503383,0.15901483,92266.0,92247.0,0.06437067]
[1767786503582,0.06400839,92265.0,92247.0,0.06437067]
[1767786511480,0.07415425,92260.0,92246.0,0.09034473]
[1767786512088,0.15901483,92265.0,92246.0,0.09034473]
[1767786512489,0.15531759,92263.0,92244.0,0.09224]
[1767786512994,0.15531759,92263.0,92244.0,0.14712342]
[1767786514290,0.15531759,92263.0,92245.0,0.05488342]
[1767786514494,0.09930368,92263.0,92245.0,0.05488342]
[1767786515590,0.09930368,92261.0,92244.0,0.09224]
[1767786515794,0.15531759,92258.0,92244.0,0.09224]
[1767786515983,0.05601391,92255.0,92244.0,0.09224]
[1767786516185,0.15531759,92255.0,92244.0,0.09224]
[1767786516586,0.09930368,92255.0,92244.0,0.09224]
[1767786518285,0.05601391,92259.0,92244.0,0.09224]
[1767786518784,0.15531759,92259.0,92244.0,0.09224]
[1767786519490,0.07415425,92254.0,92236.0,0.09224]
[1767786519690,0.07415425,92250.0,92236.0,0.09224]
[1767786522295,0.15531759,92254.0,92236.0,0.09224]
[1767786522805,0.09930368,92254.0,92236.0,0.14712342]
[1767786523104,0.07415425,92250.0,92236.0,0.14712342]
[1767786524201,0.09930368,92254.0,92236.0,0.14712342]
[1767786525497,0.010847,92253.0,92236.0,0.14712342]
[1767786525704,0.07415425,92250.0,92236.0,0.09224]
[1767786526601,0.06686091,92253.0,92236.0,0.09224]
[1767786527509,0.05601391,92253.0,92236.0,0.09224]
[1767786532112,0.15531759,92253.0,92236.0,0.09224]
[1767786533618,0.05601391,92265.0,92244.0,0.14864435]
[1767786533811,0.09224,92261.0,92245.0,0.05488342]
[1767786534119,0.09224,92260.0,92245.0,0.05488342]
[1767786535609,0.09224,92260.0,92244.0,0.09376093]
[1767786537122,0.05601391,92263.0,92236.0,0.09224]
[1767786537123,0.06053197,92265.0,92248.0,0.05488342]
[1767786537323,0.14825391,92268.0,92248.0,0.05488342]
[1767786537814,0.20661031,92268.0,92248.0,0.05488342]
[1767786538521,0.30591399,92268.0,92248.0,0.05488342]
[1767786539219,0.15531759,92267.0,92248.0,0.05488342]
[1767786539819,0.15531759,92266.0,92248.0,0.05488342]
[1767786540016,0.14484402,92264.0,92244.0,0.05488342]
[1767786544221,0.15521907,92263.0,92244.0,0.05488342]
[1767786545320,0.14437307,92262.0,92242.0,0.09376093]
[1767786545516,0.14437307,92262.0,92242.0,0.14812587]
[1767786546020,0.010847,92260.0,92242.0,0.14812587]
[1767786546322,0.04968237,92255.0,92236.0,0.1916184]
[1767786549207,0.14437307,92253.0,92233.0,0.05436494]
[1767786549415,0.14437307,92251.0,92234.0,0.09224]
[1767786549719,0.14437307,92248.0,92234.0,0.09224]
[1767786550114,0.0946907,92248.0,92234.0,0.09224]
[1767786550513,0.010848,92247.0,92234.0,0.09224]
[1767786550821,0.14437307,92245.0,92234.0,0.09224]
[1767786551023,0.0946907,92242.0,92227.0,8.219e-05]
[1767786551224,0.14437307,92242.0,92227.0,8.219e-05]
[1767786551625,0.14437307,92242.0,92219.0,0.10154716]
[1767786551626,0.14437307,92238.0,92219.0,0.10154716]
[1767786551825,0.14437307,92237.0,92219.0,0.00216876]
[1767786552023,0.0946907,92234.0,92219.0,0.00216876]
[1767786552223,0.14437307,92234.0,92219.0,0.00216876]
[1767786552534,0.04968237,92233.0,92219.0,0.00216876]
[1767786552724,0.00010509,92232.0,92219.0,0.00216876]
[1767786558734,0.00010509,92232.0,92219.0,0.0565337]
[1767786560927,0.00010509,92232.0,92219.0,0.00216876]
[1767786562139,0.14437307,92227.0,92209.0,0.09224]
[1767786562334,0.00011572,92226.0,92209.0,0.09224]
[1767786562534,0.14437307,92221.0,92203.0,0.010853]
[1767786562841,0.00011572,92220.0,92204.0,0.05436494]
[1767786563138,0.00011572,92219.0,92204.0,0.05436494]
[1767786563436,0.00011572,92219.0,92209.0,0.05436494]
[1767786564237,0.00011572,92219.0,92205.0,0.05436494]
[1767786564933,0.00011572,92219.0,92202.0,0.05436494]
[1767786567136,0.00011572,92219.0,92201.0,0.09224]
[1767786567431,0.00011572,92219.0,92202.0,0.05436494]
[1767786568441,0.00011572,92219.0,92203.0,0.010853]
[1767786568635,0.00011572,92219.0,92204.0,0.05436494]
[1767786569033,0.00011572,92219.0,92201.0,0.09224]
[1767786569238,0.00011572,92219.0,92202.0,0.05436494]
[1767786569924,0.04968237,92217.0,92201.0,0.09224]
[1767786570139,0.14437307,92216.0,92201.0,0.09224]
[1767786570329,0.0001104,92215.0,92201.0,0.09224]
[1767786570529,8.919e-05,92214.0,92201.0,0.09224]
[1767786570940,8.919e-05,92214.0,92199.0,0.05436494]
[1767786571142,8.919e-05,92214.0,92199.0,0.15374334]
[1767786571437,0.09228,92222.0,92210.0,0.05436494]
[1767786571740,0.09228,92222.0,92206.0,0.04642229]
[1767786580138,0.09228,92222.0,92199.0,0.010854]
[1767786580442,0.09228,92222.0,92201.0,0.04642229]
[1767786580741,0.09228,92222.0,92201.0,0.14417187]
[1767786581043,0.09228,92222.0,92202.0,0.04642229]
[1767786582445,0.13830387,92222.0,92202.0,0.04642229]
[1767786583645,0.23401257,92222.0,92202.0,0.04642229]
[1767786587142,0.00016263,92225.0,92207.0,0.04642229]
[1767786587349,0.09228,92224.0,92208.0,0.04642229]
[1767786588747,0.09228,92224.0,92209.0,0.010853]
[1767786588949,0.09228,92224.0,92208.0,0.04642229]
[1767786589647,0.14173257,92223.0,92202.0,0.04642229]
[1767786589834,0.14173257,92222.0,92202.0,0.04642229]
[1767786590241,0.14173257,92222.0,92203.0,0.04642229]
[1767786590448,0.0957087,92222.0,92203.0,0.04642229]
[1767786591153,0.0957087,92222.0,92204.0,0.010853]
[1767786591343,0.0957087,92222.0,92204.0,0.05727529]
[1767786591955,0.09228,92224.0,92206.0,0.14417187]
[1767786592134,0.09228,92224.0,92207.0,0.04642229]
[1767786592449,0.13830387,92224.0,92204.0,0.010853]
[1767786592660,0.13830387,92224.0,92205.0,0.04642229]